bitfinex/quotes_BTCUSD_20220120
["timestamp","ask_amount","ask_price","bid_price","bid_amount"]
[1642672799874,0.2824,42079.0,42073.0,0.00010314]
[1642672800275,0.2824,42079.0,42073.0,0.00541317]
[1642672800473,0.2824,42079.0,42074.0,0.39014159]
[1642672800673,0.29948111,42084.0,42075.0,0.25894768]
[1642672800875,0.29948111,42084.0,42076.0,0.00586745]
[1642672801075,0.29948111,42084.0,42077.0,0.00638212]
[1642672801076,0.37365176,42082.0,42077.0,0.00638212]
[1642672801275,0.37365176,42082.0,42078.0,0.00756702]
[1642672801473,0.29948111,42084.0,42075.0,0.25283159]
[1642672801874,0.29948111,42084.0,42077.0,0.0073049]
[1642672802074,0.29948111,42084.0,42075.0,0.25283159]
[1642672802075,0.29948111,42084.0,42075.0,0.2578935]
[1642672802313,0.29948111,42084.0,42076.0,0.00737982]
[1642672802507,0.29948111,42084.0,42077.0,0.02323387]
[1642672802911,0.60946876,42083.0,42077.0,0.02323387]
[1642672803110,0.55946876,42083.0,42077.0,0.02323387]
[1642672803310,0.55946876,42083.0,42078.0,0.00504362]
[1642672803910,6.876e-05,42083.0,42078.0,0.23398804]
[1642672804109,6.876e-05,42083.0,42078.0,0.00504362]
[1642672804309,0.09501646,42083.0,42078.0,0.00504362]
[1642672804511,0.09501646,42083.0,42078.0,0.02104362]
[1642672805916,0.09501646,42083.0,42079.0,0.00741301]
[1642672806166,0.09501646,42083.0,42080.0,0.00555315]
[1642672806167,6.876e-05,42083.0,42080.0,0.00555315]
[1642672806463,6.876e-05,42083.0,42078.0,0.2748272]
[1642672806663,6.876e-05,42083.0,42079.0,0.014]
[1642672807169,0.09814732,42083.0,42079.0,0.014]
[1642672807362,2.21519495,42080.0,42079.0,0.014]
[1642672807965,2.31326845,42080.0,42079.0,0.014]
[1642672808166,2.36454945,42080.0,42079.0,0.014]
[1642672808365,2.48939521,42080.0,42075.0,6.876e-05]
[1642672808567,2.49339521,42080.0,42079.0,0.042]
[1642672808765,2.27047595,42080.0,42079.0,0.042]
[1642672808964,2.39531982,42080.0,42079.0,0.042]
[1642672809264,2.45651498,42080.0,42079.0,0.04192674]
[1642672809469,2.61771014,42080.0,42079.0,0.04192674]
[1642672809913,2.48886627,42080.0,42075.0,6.876e-05]
[1642672810116,2.61360657,42080.0,42075.0,6.876e-05]
[1642672810514,2.49886627,42080.0,42075.0,0.03906876]
[1642672812014,2.48886627,42080.0,42075.0,6.876e-05]
[1642672812416,0.25970782,42079.0,42075.0,6.876e-05]
[1642672812622,2.49586627,42080.0,42075.0,0.04306876]
[1642672813420,0.30037534,42076.0,42075.0,0.04306876]
[1642672813678,0.35037534,42076.0,42075.0,0.04306876]
[1642672813877,0.35037534,42076.0,42075.0,6.876e-05]
[1642672814477,0.35037534,42076.0,42073.0,0.0011282]
[1642672814678,0.4195705,42076.0,42075.0,0.042]
[1642672814876,0.48076566,42076.0,42075.0,0.042]
[1642672815078,0.48076566,42076.0,42075.0,0.04206876]
[1642672815879,0.47276566,42076.0,42075.0,6.876e-05]
[1642672816682,0.48198405,42076.0,42075.0,0.04106876]
[1642672816880,0.48198405,42076.0,42075.0,0.041]
[1642672817080,0.48198405,42076.0,42075.0,0.04106876]
[1642672817918,0.47398405,42076.0,42075.0,6.876e-05]
[1642672818718,0.48198405,42076.0,42075.0,0.03506876]
[1642672820026,0.48198405,42076.0,42063.0,0.27149502]
[1642672820027,0.85,42074.0,42063.0,0.27149502]
[1642672820224,0.166832,42073.0,42057.0,0.58029502]
[1642672820425,0.02289063,42063.0,42062.0,0.00451395]
[1642672820917,0.99132583,42063.0,42062.0,0.00473742]
[1642672821364,0.58901201,42063.0,42062.0,0.00022347]
[1642672821563,0.56737201,42063.0,42062.0,0.00022347]
[1642672821765,0.56737201,42063.0,42055.0,0.26786373]
[1642672821766,0.56737201,42063.0,42056.0,0.00032661]
[1642672821963,0.56673877,42063.0,42056.0,0.00032661]
[1642672822562,0.57173877,42063.0,42056.0,0.00032661]
[1642672823965,0.56673877,42063.0,42057.0,0.00121118]
[1642672824166,0.37913345,42060.0,42057.0,0.00121118]
[1642672824367,0.37913345,42060.0,42058.0,0.00029223]
[1642672824569,0.117466,42060.0,42058.0,0.00029223]
[1642672824818,0.058,42060.0,42058.0,0.00029223]
[1642672825017,0.008,42060.0,42058.0,0.00029223]
[1642672825219,0.008,42060.0,42057.0,0.0015206]
[1642672825417,0.008,42060.0,42058.0,0.00029223]
[1642672826018,0.06119516,42059.0,42058.0,0.00029223]
[1642672826217,0.12239032,42059.0,42058.0,0.00029223]
[1642672826417,0.17239032,42059.0,42057.0,0.0015206]
[1642672826618,0.12839032,42059.0,42058.0,0.00029223]
[1642672827620,0.12839032,42059.0,42057.0,0.00030942]
[1642672827820,0.12839032,42059.0,42058.0,0.383879]
[1642672827821,0.12239032,42059.0,42058.0,0.383879]
[1642672828225,0.12239032,42059.0,42058.0,0.38417123]
[1642672828662,0.12639032,42059.0,42058.0,0.38417123]
[1642672829259,0.17639032,42059.0,42058.0,0.38417123]
[1642672829861,0.17639032,42059.0,42058.0,0.00029223]
[1642672829862,0.82750468,42059.0,42058.0,0.00029223]
[1642672830065,0.70437524,42059.0,42058.0,0.00029223]
[1642672830260,0.70437524,42059.0,42056.0,0.00110258]
[1642672830765,0.00129255,42057.0,42056.0,0.00110258]
[1642672830960,0.30318656,42056.0,42055.0,0.26786373]
[1642672831162,0.30318656,42056.0,42055.0,0.26899866]
[1642672831363,0.47557688,42056.0,42055.0,0.26899866]
[1642672832160,0.47557688,42056.0,42055.0,0.26786373]
[1642672832413,0.52347688,42056.0,42055.0,0.26786373]
[1642672832613,0.53147688,42056.0,42055.0,0.26786373]
[1642672833012,0.53147688,42056.0,42053.0,0.00113496]
[1642672833213,0.59095388,42056.0,42051.0,0.02]
[1642672833417,0.059478,42055.0,42054.0,6.876e-05]
[1642672833613,0.107378,42055.0,42054.0,6.876e-05]
[1642672834613,0.113378,42055.0,42054.0,6.876e-05]
[1642672834813,0.0539,42055.0,42052.0,0.00122882]
[1642672835014,0.0539,42055.0,42051.0,0.01570707]
[1642672835814,0.107373,42055.0,42051.0,0.01570707]
[1642672836665,0.06119516,42053.0,42051.0,0.01570707]
[1642672836864,0.12239032,42053.0,42051.0,0.01570707]
[1642672841727,0.67780385,42056.0,42051.0,0.01570707]
[1642672841927,0.06119516,42052.0,42051.0,0.01570707]
[1642672842125,0.06119516,42052.0,42051.0,0.39958607]
[1642672842524,0.06119516,42052.0,42051.0,0.44958607]
[1642672844064,0.06119516,42052.0,42051.0,0.68853755]
[1642672844461,0.06119516,42052.0,42051.0,0.44958607]
[1642672845264,0.06119516,42052.0,42051.0,0.45126789]
[1642672847411,0.12239032,42052.0,42051.0,0.45126789]
[1642672848409,0.12232053,42052.0,42051.0,0.45126789]
[1642672848610,0.06119516,42052.0,42051.0,0.45126789]
[1642672848809,0.12232053,42052.0,42051.0,0.45126789]
[1642672849021,0.12232053,42052.0,42051.0,0.80731401]
[1642672849213,0.12232053,42052.0,42051.0,0.70731401]
[1642672850712,0.12232053,42052.0,42051.0,0.80331401]
[1642672852070,0.12232053,42052.0,42051.0,0.70731401]
[1642672852670,0.12232053,42052.0,42051.0,0.78231401]
[1642672853470,0.12232053,42052.0,42051.0,0.52626789]
[1642672853670,0.12232053,42052.0,42051.0,0.14238889]
[1642672854072,0.12232053,42052.0,42051.0,0.06738889]
[1642672854669,0.12232053,42052.0,42051.0,0.75577908]
[1642672856117,0.12232053,42052.0,42051.0,0.68377908]
[1642672856719,0.12232053,42052.0,42051.0,0.75677908]
[1642672857123,0.0586,42058.0,42052.0,0.85]
[1642672857328,0.0586,42058.0,42057.0,1.07306336]
[1642672857525,0.00075439,42065.0,42057.0,1.88824748]
[1642672857822,0.00097786,42065.0,42061.0,0.383879]
[1642672858024,0.00097786,42065.0,42064.0,0.383879]
[1642672858224,0.00097786,42065.0,42064.0,1.22146512]
[1642672858421,0.00022347,42065.0,42064.0,1.70324412]
[1642672858672,0.00022347,42065.0,42064.0,1.73924412]
[1642672858875,0.00022347,42065.0,42064.0,1.78924412]
[1642672859271,0.00022347,42065.0,42064.0,0.95118412]
[1642672859671,0.00022347,42065.0,42064.0,0.90118412]
[1642672860073,0.00022347,42065.0,42064.0,0.75324412]
[1642672860272,0.00022347,42065.0,42064.0,0.431779]
[1642672860672,0.00022347,42065.0,42064.0,0.475779]
[1642672861873,0.00022347,42065.0,42064.0,0.525779]
[1642672862179,0.00022347,42065.0,42064.0,0.71912444]
[1642672862817,0.00022347,42065.0,42064.0,0.77012444]
[1642672863017,0.00022347,42065.0,42064.0,0.87012444]
[1642672863220,0.00022347,42065.0,42064.0,1.24201612]
[1642672863221,3.47e-06,42065.0,42064.0,1.24201612]
[1642672863420,3.47e-06,42065.0,42064.0,2.28542373]
[1642672863620,0.0903212,42082.0,42066.0,0.383879]
[1642672863819,0.0903212,42082.0,42069.0,0.11883771]
[1642672864022,0.00027504,42081.0,42070.0,0.76333879]
[1642672864223,0.00027504,42081.0,42074.0,0.383879]
[1642672864421,0.81697295,42093.0,42078.0,0.383879]
[1642672864422,0.00025785,42080.0,42078.0,0.383879]
[1642672864623,0.00025785,42080.0,42079.0,0.86706451]
[1642672864828,0.0903212,42086.0,42079.0,0.86706451]
[1642672864829,0.0903212,42086.0,42079.0,0.93070218]
[1642672865023,0.0903212,42086.0,42079.0,0.65876318]
[1642672865221,0.0003438,42085.0,42084.0,0.24290593]
[1642672865424,0.0003438,42085.0,42084.0,0.47953152]
[1642672865627,0.00044694,42091.0,42084.0,1.06131052]
[1642672865928,0.00044694,42091.0,42090.0,0.85128005]
[1642672865929,0.08871433,42091.0,42090.0,0.85128005]
[1642672866171,0.0021,42095.0,42090.0,1.71569377]
[1642672866370,0.0021,42095.0,42094.0,0.383879]
[1642672866570,0.0021,42095.0,42094.0,0.85376218]
[1642672866773,0.00216876,42095.0,42094.0,0.64246244]
[1642672867172,0.003,42096.0,42095.0,0.75]
[1642672867475,0.003,42096.0,42095.0,0.431779]
[1642672867671,0.003,42096.0,42095.0,0.531779]
[1642672868271,0.003,42096.0,42095.0,0.543719]
[1642672868671,0.003,42096.0,42095.0,0.83846304]
[1642672868872,0.003,42096.0,42095.0,0.88646304]
[1642672869675,0.003,42096.0,42095.0,0.87452304]
[1642672870120,0.003,42096.0,42095.0,0.82652304]
[1642672870615,0.003,42096.0,42095.0,0.531779]
[1642672870818,0.003,42096.0,42095.0,0.564779]
[1642672871616,0.003,42096.0,42095.0,0.1809]
[1642672872015,0.003,42096.0,42095.0,0.0479]
[1642672872720,0.003,42096.0,42095.0,0.0649]
[1642672874368,0.003,42096.0,42095.0,0.0479]
[1642672874866,0.003,42096.0,42095.0,0.018]
[1642672875468,0.003,42096.0,42095.0,0.401879]
[1642672875669,0.003,42096.0,42095.0,0.501879]
[1642672875868,0.003,42096.0,42095.0,0.73268145]
[1642672876068,0.003,42096.0,42095.0,0.483879]
[1642672876670,0.003,42096.0,42095.0,0.71378179]
[1642672876867,0.003,42096.0,42095.0,0.74078179]
[1642672877916,0.003,42096.0,42095.0,0.510879]
[1642672878112,0.003,42096.0,42095.0,0.483879]
[1642672878512,0.003,42096.0,42095.0,0.1]
[1642672878713,0.003,42096.0,42095.0,0.016]
[1642672880115,0.003,42096.0,42095.0,0.38569527]
[1642672880520,0.003,42096.0,42095.0,0.48569527]
[1642672880717,0.003,42096.0,42095.0,0.51369527]
[1642672882166,0.003,42096.0,42095.0,0.71414194]
[1642672882766,0.003,42096.0,42095.0,0.74314194]
[1642672883070,0.00297693,42098.0,42096.0,0.85]
[1642672883272,0.9396609,42118.0,42100.0,1.23510701]
[1642672883273,0.00264929,42104.0,42100.0,1.23510701]
[1642672883471,0.00264929,42104.0,42103.0,0.383879]
[1642672883666,0.001,42110.0,42102.0,0.02159]
[1642672883667,0.03116066,42105.0,42102.0,0.02159]
[1642672883865,0.03126779,42105.0,42104.0,0.383879]
[1642672884067,0.03126779,42105.0,42102.0,0.02159]
[1642672884068,0.00013753,42103.0,42102.0,0.02159]
[1642672884264,0.00013753,42103.0,42102.0,0.61762292]
[1642672884465,0.00015472,42104.0,42102.0,0.61762292]
[1642672884666,0.00015472,42104.0,42103.0,0.383879]
[1642672884916,0.00015472,42104.0,42103.0,0.431779]
[1642672885519,0.00015472,42104.0,42103.0,0.7037281]
[1642672885917,0.00015472,42104.0,42103.0,1.9677281]
[1642672886117,0.00015472,42104.0,42103.0,0.7037281]
[1642672886819,0.00015472,42104.0,42103.0,0.7287281]
[1642672887017,0.00015472,42104.0,42103.0,0.72747372]
[1642672888020,0.00015472,42104.0,42103.0,0.70247372]
[1642672888866,0.00015472,42104.0,42103.0,0.73447372]
[1642672889068,0.00015472,42104.0,42103.0,0.74174314]
[1642672889270,0.00015472,42104.0,42103.0,0.73447372]
[1642672889669,0.00015472,42104.0,42103.0,0.463779]
[1642672890069,0.00015472,42104.0,42103.0,0.43358076]
[1642672890872,0.00015472,42104.0,42103.0,0.46258076]
[1642672891669,0.00015472,42104.0,42103.0,0.41468076]
[1642672892067,0.00015472,42104.0,42103.0,0.38568076]
[1642672892520,0.00015472,42104.0,42103.0,0.74647549]
[1642672892721,0.00015472,42104.0,42103.0,0.79437549]
[1642672892920,0.00015472,42104.0,42103.0,0.82237549]
[1642672893120,0.00095705,42106.0,42104.0,1.233879]
[1642672893326,0.00592725,42117.0,42106.0,1.233879]
[1642672893327,0.0011,42116.0,42106.0,1.233879]
[1642672893533,0.0011,42116.0,42113.0,0.34477228]
[1642672893728,0.0011,42116.0,42113.0,0.70247372]
[1642672893922,0.0011,42116.0,42114.0,1.033879]
[1642672894123,0.0011,42116.0,42115.0,0.383879]
[1642672894521,0.0011,42116.0,42115.0,0.495819]
[1642672894723,0.0011,42116.0,42115.0,0.483879]
[1642672894925,0.0011,42116.0,42115.0,0.498879]
[1642672895822,1.89072012,42116.0,42115.0,0.115]
[1642672896074,1.89072012,42116.0,42114.0,0.0479]
[1642672896467,0.00018909,42115.0,42114.0,0.0479]
[1642672896870,0.00018909,42115.0,42114.0,0.022]
[1642672898270,0.00018909,42115.0,42114.0,0.24214118]
[1642672898469,0.00018909,42115.0,42114.0,0.62602018]
[1642672898673,0.00018909,42115.0,42114.0,0.60402018]
[1642672898870,0.00018909,42115.0,42114.0,0.76702018]
[1642672899271,0.00018909,42115.0,42114.0,0.77470904]
[1642672899471,0.00264288,42115.0,42114.0,0.76702018]
[1642672899670,0.00264288,42115.0,42114.0,0.546879]
[1642672899920,0.00264288,42115.0,42114.0,0.446879]
[1642672900116,0.00264288,42115.0,42114.0,0.38521536]
[1642672900319,0.00264288,42115.0,42114.0,0.00133636]
[1642672900515,0.00509667,42115.0,42114.0,0.00133636]
[1642672901112,0.00264288,42115.0,42114.0,0.00133636]
[1642672902013,0.00509667,42115.0,42114.0,0.00133636]
[1642672902214,0.00264288,42115.0,42114.0,0.00133636]
[1642672903014,0.26057742,42115.0,42114.0,0.00133636]
[1642672903217,0.26303121,42115.0,42114.0,0.00133636]
[1642672903663,0.26057742,42115.0,42114.0,0.00133636]
[1642672904267,0.00230946,42116.0,42114.0,0.00133636]
[1642672904468,0.0030572,42117.0,42114.0,0.04923636]
[1642672904666,0.0030572,42117.0,42114.0,0.04678257]
[1642672904864,0.0030572,42117.0,42114.0,0.05878257]
[1642672905067,0.0111,42119.0,42114.0,0.06011893]
[1642672905265,0.0111,42119.0,42118.0,0.40153516]
[1642672905468,6e-05,42120.0,42118.0,0.40153516]
[1642672905667,6e-05,42120.0,42119.0,0.383879]
[1642672905967,0.00014595,42120.0,42118.0,0.1]
[1642672906372,6.876e-05,42119.0,42118.0,0.15936879]
[1642672906568,6.876e-05,42119.0,42118.0,0.67683431]
[1642672906769,6.876e-05,42119.0,42118.0,0.69683431]
[1642672907418,6.876e-05,42119.0,42118.0,0.79683431]
[1642672907817,6.876e-05,42119.0,42118.0,0.73746552]
[1642672908019,6.876e-05,42119.0,42118.0,0.61746552]
[1642672908221,6.876e-05,42119.0,42118.0,0.383879]
[1642672908618,6.876e-05,42119.0,42117.0,0.0479]
[1642672908820,6.876e-05,42119.0,42118.0,0.029]
[1642672909219,0.32952432,42119.0,42118.0,0.029]
[1642672909420,0.37952432,42119.0,42118.0,0.029]
[1642672910018,0.43891032,42119.0,42118.0,0.029]
[1642672910220,0.43891032,42119.0,42111.0,0.21650694]
[1642672910421,0.49829932,42119.0,42111.0,0.21650694]
[1642672910819,0.49829932,42119.0,42111.0,0.26650694]
[1642672911069,2.48093129,42112.0,42111.0,0.31250694]
[1642672911271,2.48093129,42112.0,42111.0,0.10195001]
[1642672911470,2.48093129,42112.0,42111.0,0.10201877]
[1642672912370,2.48093129,42112.0,42111.0,0.05601877]
[1642672912769,2.48093129,42112.0,42111.0,0.10301877]
[1642672912974,0.008,42112.0,42111.0,0.41451288]
[1642672913173,0.008,42112.0,42111.0,0.91153812]
[1642672913373,0.008,42112.0,42111.0,0.641994]
[1642672913573,0.008,42112.0,42111.0,0.66870017]
[1642672913974,0.008,42112.0,42111.0,0.96604065]
[1642672914176,0.00101731,42119.0,42111.0,0.91904065]
[1642672914375,0.00101731,42119.0,42113.0,0.11874052]
[1642672914575,0.00101731,42119.0,42114.0,0.431779]
[1642672914817,6.876e-05,42119.0,42114.0,0.431779]
[1642672915018,0.00101747,42119.0,42114.0,0.531779]
[1642672915221,0.00101747,42119.0,42118.0,1.23511468]
[1642672915421,0.00101747,42119.0,42118.0,0.43301468]
[1642672915619,0.00101747,42119.0,42118.0,0.53301468]
[1642672916022,0.00101747,42119.0,42118.0,0.531779]
[1642672916023,2.06520063,42119.0,42118.0,0.531779]
[1642672916221,2.06520063,42119.0,42118.0,0.1479]
[1642672916621,6.876e-05,42119.0,42118.0,0.0479]
[1642672916823,6.876e-05,42119.0,42118.0,0.446779]
[1642672917019,6.876e-05,42119.0,42118.0,0.546779]
[1642672917219,6.876e-05,42119.0,42118.0,0.446779]
[1642672918022,6.876e-05,42119.0,42118.0,0.531779]
[1642672918568,0.05044552,42127.0,42120.0,0.23339063]
[1642672918772,0.00094876,42121.0,42120.0,0.28129063]
[1642672918971,0.00094876,42121.0,42120.0,0.93471375]
[1642672919172,0.00094876,42121.0,42120.0,1.03471375]
[1642672919372,0.00094876,42121.0,42120.0,1.0359173]
[1642672919571,0.00094876,42121.0,42120.0,1.37372312]
[1642672919769,0.00012033,42126.0,42120.0,0.76637318]
[1642672920070,0.00010314,42125.0,42124.0,0.38514957]
[1642672920270,0.00010314,42125.0,42124.0,0.43304957]
[1642672920869,0.00010314,42125.0,42124.0,0.44904957]
[1642672921273,0.00010314,42125.0,42124.0,0.71859369]
[1642672921468,0.00010314,42125.0,42124.0,0.31424957]
[1642672921769,0.00010314,42125.0,42124.0,0.57112646]
[1642672922169,0.00010314,42125.0,42124.0,0.55512646]
[1642672922623,0.00010314,42125.0,42124.0,0.29824957]
[1642672922821,0.00010314,42125.0,42124.0,0.31324957]
[1642672923022,0.00010314,42125.0,42124.0,0.31996153]
[1642672923223,0.00010314,42125.0,42124.0,0.31324957]
[1642672924134,0.00010314,42125.0,42124.0,0.29824957]
[1642672924526,0.00010314,42125.0,42124.0,0.53160165]
[1642672924921,0.00010314,42125.0,42124.0,0.50070165]
[1642672925921,0.00010314,42125.0,42124.0,0.26734957]
[1642672926173,0.00010314,42125.0,42124.0,0.25034957]
[1642672927096,0.00010314,42125.0,42124.0,0.27034957]
[1642672928373,0.00010314,42125.0,42124.0,0.25034957]
[1642672928575,0.00010314,42125.0,42115.0,1.4572]
[1642672928775,0.00010314,42125.0,42116.0,0.383449]
[1642672928974,0.00074227,42127.0,42124.0,0.006]
[1642672929375,0.00012033,42126.0,42124.0,0.006]
[1642672929679,0.30010314,42125.0,42124.0,0.006]
[1642672929937,0.00010314,42125.0,42124.0,0.006]
[1642672930138,0.00010314,42125.0,42117.0,0.05937002]
[1642672930339,0.25134485,42123.0,42118.0,0.383449]
[1642672930542,0.30134485,42123.0,42118.0,0.383449]
[1642672930741,0.30206441,42123.0,42114.0,0.06050226]
[1642672931040,2.4447603,42121.0,42118.0,0.014]
[1642672931642,0.25134485,42123.0,42118.0,0.014]
[1642672931941,0.25206437,42123.0,42118.0,0.014]
[1642672932245,0.25206437,42123.0,42115.0,0.11880238]
[1642672932640,0.00071952,42123.0,42115.0,0.11880238]
[1642672932843,8.595e-05,42124.0,42116.0,0.383449]
[1642672933041,0.00071951,42123.0,42116.0,0.433449]
[1642672933242,0.00078827,42123.0,42117.0,0.06707411]
[1642672933569,0.33826103,42123.0,42119.0,0.00533806]
[1642672933770,0.33826103,42123.0,42118.0,0.00563318]
[1642672933974,0.25556451,42122.0,42106.0,0.00127857]
[1642672934278,2.12200959,42120.0,42114.0,0.00112993]
[1642672934572,6.876e-05,42119.0,42114.0,0.00112993]
[1642672935070,0.59241664,42116.0,42114.0,0.00612993]
[1642672935272,0.64241664,42116.0,42114.0,0.005]
[1642672935471,0.64241664,42116.0,42114.0,0.00612988]
[1642672935671,0.29323885,42116.0,42114.0,0.00612988]
[1642672936069,0.34323885,42116.0,42114.0,0.00112988]
[1642672936569,0.34323885,42116.0,42107.0,0.05938386]
[1642672936771,0.34323885,42116.0,42113.0,0.00112988]
[1642672936970,0.36123885,42116.0,42113.0,0.00112988]
[1642672937623,0.36123885,42116.0,42110.0,0.05937922]
[1642672937823,0.36123885,42116.0,42112.0,0.00112917]
[1642672938024,1.94048936,42120.0,42112.0,0.00112917]
[1642672938226,1.94048936,42120.0,42113.0,0.00010314]
[1642672939025,1.94948936,42120.0,42113.0,0.01210314]
[1642672939227,2.24801461,42120.0,42114.0,0.00112915]
[1642672939427,2.24801461,42120.0,42114.0,0.0012151]
[1642672939627,2.24801461,42120.0,42115.0,6.876e-05]
[1642672940226,1.99048936,42120.0,42115.0,6.876e-05]
[1642672940425,1.99048936,42120.0,42114.0,0.00121512]
[1642672940627,1.89048936,42120.0,42115.0,6.876e-05]
[1642672941083,1.92448936,42120.0,42115.0,6.876e-05]
[1642672941282,0.06461568,42119.0,42115.0,6.876e-05]
[1642672942484,0.18338768,42119.0,42115.0,6.876e-05]
[1642672942789,0.11461568,42118.0,42114.0,0.00111313]
[1642672942984,0.059385,42116.0,42114.0,0.00111313]
[1642672943784,0.059385,42116.0,42108.0,0.05938111]
[1642672943785,0.28006879,42115.0,42107.0,0.00013752]
[1642672943983,0.33006879,42115.0,42107.0,0.00013752]
[1642672944384,0.059391,42113.0,42107.0,0.00013752]
[1642672945023,0.059391,42113.0,42107.0,0.03413752]
[1642672945423,0.059391,42113.0,42108.0,0.00012033]
[1642672946318,0.059391,42113.0,42108.0,0.00124971]
[1642672946719,0.059391,42113.0,42109.0,0.00010314]
[1642672947520,0.059391,42113.0,42109.0,0.00123251]
[1642672947925,0.059391,42113.0,42110.0,8.595e-05]
[1642672948970,0.066391,42113.0,42110.0,0.01208595]
[1642672949370,0.066391,42113.0,42111.0,6.876e-05]
[1642672950372,0.059391,42113.0,42111.0,6.876e-05]
[1642672950580,0.38641257,42114.0,42111.0,6.876e-05]
[1642672950771,0.05,42114.0,42110.0,8.595e-05]
[1642672950971,0.007,42113.0,42111.0,0.011]
[1642672952425,0.35414426,42120.0,42110.0,0.00121532]
[1642672952823,0.35414426,42120.0,42111.0,6.876e-05]
[1642672953024,0.06937969,42119.0,42111.0,6.876e-05]
[1642672953230,0.31355722,42118.0,42111.0,0.05944761]
[1642672953425,0.06937969,42119.0,42113.0,0.00112931]
[1642672953628,0.00127935,42115.0,42113.0,0.00112931]
[1642672953829,0.06066835,42115.0,42113.0,0.00112931]
[1642672954426,0.06066835,42115.0,42111.0,6.876e-05]
[1642672954628,0.06066835,42115.0,42112.0,0.00112934]
[1642672954629,0.28756213,42114.0,42112.0,0.00112934]
[1642672955026,0.05,42114.0,42112.0,0.00112934]
[1642672955428,0.29859178,42113.0,42112.0,0.00112934]
[1642672955630,0.29859178,42113.0,42111.0,0.041]
[1642672955831,0.29859178,42113.0,42111.0,0.04212934]
[1642672956271,0.29859178,42113.0,42111.0,0.00112934]
[1642672956869,0.29859178,42113.0,42110.0,8.595e-05]
[1642672957068,0.29859178,42113.0,42111.0,0.054]
[1642672960926,0.35159178,42113.0,42111.0,0.01]
[1642672962929,0.29859178,42113.0,42105.0,0.0001719]
[1642672963129,0.32016964,42112.0,42110.0,0.00112937]
[1642672963574,0.37016964,42112.0,42111.0,6.876e-05]
[1642672963778,0.109397,42112.0,42111.0,6.876e-05]
[1642672964574,0.109397,42112.0,42109.0,0.00112938]
[1642672964775,0.059397,42112.0,42110.0,8.595e-05]
[1642672964975,0.117397,42112.0,42110.0,8.595e-05]
[1642672965775,0.117397,42112.0,42109.0,0.00112938]
[1642672965977,0.117397,42112.0,42110.0,8.595e-05]
[1642672966177,0.059397,42112.0,42110.0,1.54e-05]
[1642672966979,0.072397,42112.0,42110.0,0.004]
[1642672967830,0.41159273,42112.0,42110.0,0.004]
[1642672968228,0.39859273,42112.0,42109.0,0.00112939]
[1642672968828,0.39859273,42112.0,42104.0,0.0076516]
[1642672969036,0.40859273,42112.0,42109.0,0.01]
[1642672970130,0.40859273,42112.0,42109.0,0.00843814]
[1642672970329,0.39859273,42112.0,42108.0,0.00642083]
[1642672970531,0.39859273,42112.0,42108.0,0.0062139]
[1642672970731,0.39859273,42112.0,42108.0,0.00657479]
[1642672970932,0.39859273,42112.0,42108.0,0.00846319]
[1642672971178,0.39859273,42112.0,42108.0,0.02188025]
[1642672971378,0.39859273,42112.0,42108.0,0.02134282]
[1642672971583,0.39859273,42112.0,42108.0,0.02173087]
[1642672971779,0.39859273,42112.0,42108.0,0.0213516]
[1642672971980,0.39859273,42112.0,42108.0,0.02410034]
[1642672972180,0.39859273,42112.0,42108.0,0.00742296]
[1642672972478,0.39859273,42112.0,42105.0,0.00010135]
[1642672972479,0.39859273,42112.0,42105.0,0.00711727]
[1642672972680,0.39859273,42112.0,42108.0,0.0011294]
[1642672972880,0.39859273,42112.0,42108.0,0.00720822]
[1642672973080,0.39859273,42112.0,42108.0,0.00871246]
[1642672973279,0.39859273,42112.0,42108.0,0.00829332]
[1642672973479,0.109397,42112.0,42108.0,0.00794594]
[1642672973680,0.109397,42112.0,42108.0,0.00661854]
[1642672973881,0.109397,42112.0,42108.0,0.00858231]
[1642672974084,0.109397,42112.0,42108.0,0.00718847]
[1642672974281,0.109397,42112.0,42108.0,0.00912059]
[1642672974481,0.109397,42112.0,42108.0,0.00796654]
[1642672974683,0.059397,42112.0,42108.0,0.00708819]
[1642672974928,0.059397,42112.0,42108.0,0.00626345]
[1642672975128,0.059397,42112.0,42108.0,0.00739286]
[1642672975328,0.059397,42112.0,42108.0,0.00769086]
[1642672975529,0.059397,42112.0,42108.0,0.00782544]
[1642672975729,0.059397,42112.0,42108.0,0.00865614]
[1642672975930,0.059397,42112.0,42108.0,0.00112941]
[1642672976130,0.059397,42112.0,42108.0,0.016]
[1642672976331,0.059397,42112.0,42108.0,0.00112941]
[1642672976530,0.059397,42112.0,42108.0,0.00821]
[1642672976735,0.059397,42112.0,42108.0,0.0063346]
[1642672976929,0.059397,42112.0,42108.0,0.00684225]
[1642672977130,0.059397,42112.0,42108.0,0.02361459]
[1642672977333,0.059397,42112.0,42108.0,0.02161315]
[1642672977534,0.059397,42112.0,42108.0,0.02205537]
[1642672977731,0.059397,42112.0,42108.0,0.02194517]
[1642672977930,0.059397,42112.0,42108.0,0.02283484]
[1642672978134,0.059397,42112.0,42108.0,0.02149981]
[1642672978333,0.059397,42112.0,42108.0,0.0089673]
[1642672978575,0.059397,42112.0,42106.0,0.00693612]
[1642672978775,0.059397,42112.0,42108.0,0.00112941]
[1642672978977,0.059397,42112.0,42108.0,0.00720333]
[1642672979177,0.059397,42112.0,42108.0,0.00693649]
[1642672979379,0.059397,42112.0,42108.0,0.00707816]
[1642672979576,0.059397,42112.0,42108.0,0.0089184]
[1642672979776,0.059397,42112.0,42108.0,0.00729532]
[1642672980076,0.059397,42112.0,42108.0,0.00877017]
[1642672980276,0.059397,42112.0,42108.0,0.00717338]
[1642672980476,0.059397,42112.0,42108.0,0.00756457]
[1642672980676,0.059397,42112.0,42108.0,0.00667701]
[1642672980877,0.059397,42112.0,42108.0,0.00735039]
[1642672981075,0.059397,42112.0,42108.0,0.0224798]
[1642672981275,0.059397,42112.0,42108.0,0.02131415]
[1642672981475,0.059397,42112.0,42110.0,0.0004459]
[1642672983132,0.082397,42112.0,42110.0,0.0074459]
[1642672984435,0.059397,42112.0,42110.0,0.0004459]
[1642672985036,0.2588933,42111.0,42110.0,0.0074459]
[1642672985435,0.39134716,42111.0,42110.0,0.0074459]
[1642672985937,0.13245386,42111.0,42110.0,0.0074459]
[1642672986376,0.13245386,42111.0,42110.0,0.00023249]
[1642672987079,0.14345386,42111.0,42110.0,0.00723249]
[1642672988575,0.13245386,42111.0,42110.0,0.00023249]
[1642672989078,0.15345386,42111.0,42110.0,0.00723249]
[1642672990427,0.15345386,42111.0,42110.0,0.00023249]
[1642672990428,0.13245386,42111.0,42110.0,0.00023249]
[1642672991027,0.14745386,42111.0,42110.0,0.00623249]
[1642672992228,0.13245386,42111.0,42110.0,0.00023249]
[1642672992829,0.13245386,42111.0,42110.0,0.00015496]